[Event "Irish New Year-GM 2022"]
[Site "Dublin"]
[Date "2022.01.02"]
[Round "1.1"]
[White "O`Gorman, Tom"]
[Black "Arkell, Keith C"]
[Result "0-1"]
[ECO "C10"]
[WhiteElo "2350"]
[BlackElo "2370"]
[Annotator "ChessBase"]
[PlyCount "100"]
[EventDate "2022.01.02"]
[EventType "tourn"]
[EventCountry "IRL"]
[SourceTitle "playchess.com"]
[Source "ChessBase"]
[SourceQuality "1"]
[TimeControl "5400+30"]

1. e4 {[%emt 0:00:03]} e6 {[%emt 0:00:07]} 2. d4 {[%emt 0:00:22]} d5 {[%emt 0:00:05]} 3. Nd2 {[%emt 0:00:07]} dxe4 {[%emt 0:00:04]} 4. Nxe4 {[%emt 0:00:08]} Bd7 {[%emt 0:00:02]} 5. Nf3 {[%emt 0:00:43]} Bc6 {[%emt 0:00:05]} 6. Neg5 {[%emt 0:00:05]} Bd6 {[%emt 0:01:28]} 7. Bc4 {[%emt 0:07:20]} h6 {[%emt 0:03:34]} 8. Nxe6 {[%emt 0:05:40]} fxe6 {[%emt 0:00:48]} 9. Bxe6 {[%emt 0:00:06]} Qf6 {[%emt 0:12:56]} 10. d5 {[%emt 0:03:08]} Bd7 {[%emt 0:04:51]} 11. Nd4 {[%emt 0:17:19]} Qe5+ {[%emt 0:14:16]} 12. Be3 {[%emt 0:00:29]} Nf6 {[%emt 0:00:22]} 13. Qd3 {[%emt 0:18:40]} Qe4 {[%emt 0:06:23]} 14. Qb3 {[%emt 0:03:52]} Bxe6 {[%emt 0:03:37]} 15. dxe6 {[%emt 0:00:12]} Nc6 {[%emt 0:07:50]} 16. O-O-O {[%emt 0:20:40]} Nxd4 {[%emt 0:02:55]} 17. Bxd4 {[%emt 0:00:50]} O-O-O {[%emt 0:01:51]} 18. f3 {[%emt 0:03:47]} Qd5 {[%emt 0:07:15]} 19. Qxd5 {[%emt 0:00:51]} Bf4+ {[%emt 0:00:19]} 20. Kb1 {[%emt 0:00:10]} Rxd5 {[%emt 0:01:15]} 21. c4 {[%emt 0:01:52]} Rdd8 {[%emt 0:01:59]} 22. g3 {[%emt 0:01:55]} Bd6 {[%emt 0:00:10]} 23. f4 {[%emt 0:00:19]} Be7 {[%emt 0:01:23]} 24. g4 {[%emt 0:07:46]} Rd6 {[%emt 0:00:37]} 25. Bxf6 {[%emt 0:00:45]} gxf6 {[%emt 0:00:44]} 26. f5 {[%emt 0:01:31]} h5 {[%emt 0:00:19]} 27. Rxd6 {[%emt 0:01:15]} cxd6 {[%emt 0:00:24]} 28. Rg1 {[%emt 0:01:15]} hxg4 {[%emt 0:01:43]} 29. Rxg4 {[%emt 0:00:06]} Kd8 {[%emt 0:01:25]} 30. h4 {[%emt 0:00:48]} Ke8 {[%emt 0:00:06]} 31. Kc2 {[%emt 0:01:06]} Rh5 {[%emt 0:00:27]} 32. Rf4 {[%emt 0:02:18]} Bf8 {[%emt 0:00:07]} 33. Kb3 {[%emt 0:00:50]} Ke7 {[%emt 0:01:19]} 34. c5 {[%emt 0:00:32]} dxc5 {[%emt 0:00:23]} 35. Kc4 {[%emt 0:00:01]} Bh6 {[%emt 0:00:27]} 36. Rf3 {[%emt 0:00:01]} b6 {[%emt 0:02:13]} 37. Kb5 {[%emt 0:00:58]} Rxh4 {[%emt 0:01:07]} 38. Ra3 {[%emt 0:00:04]} Kd6 {[%emt 0:04:04]} 39. Rxa7 {[%emt 0:00:29]} Rb4+ {[%emt 0:00:11]} 40. Ka6 {[%emt 0:00:04]} Kc6 {[%emt 0:00:42]} 41. b3 {[%emt 0:00:30]} Bf4 {[%emt 0:01:18]} 42. Ra8 {[%emt 0:01:09]} Re4 {[%emt 0:00:46]} 43. Rf8 {[%emt 0:00:34]} c4 {[%emt 0:02:55]} 44. e7 {[%emt 0:01:14]} Rxe7 {[%emt 0:00:42]} 45. Rxf6+ {[%emt 0:00:01]} Bd6 {[%emt 0:00:42]} 46. bxc4 {[%emt 0:00:04]} Re3 {[%emt 0:00:26]} 47. Rxd6+ {[%emt 0:00:45]} Kxd6 {[%emt 0:00:05]} 48. Kxb6 {[%emt 0:00:03]} Rc3 {[%emt 0:01:21]} 49. Kb5 {[%emt 0:01:09]} Kc7 {[%emt 0:00:31]} 50. Kc5 {[%emt 0:00:17]} Rf3 {[%emt 0:00:07]} 0-1

[Event "Irish New Year-GM 2022"]
[Site "Dublin"]
[Date "2022.01.02"]
[Round "1.2"]
[White "Stefansson, Vignir Vatnar"]
[Black "Collins, Sam E."]
[Result "1-0"]
[ECO "E64"]
[WhiteElo "2457"]
[BlackElo "2456"]
[Annotator "ChessBase"]
[PlyCount "101"]
[EventDate "2022.01.02"]
[EventType "tourn"]
[EventCountry "IRL"]
[SourceTitle "playchess.com"]
[Source "ChessBase"]
[SourceQuality "1"]
[TimeControl "5400+30"]

1. d4 {[%emt 0:00:13]} Nf6 {[%emt 0:00:42]} 2. c4 {[%emt 0:00:27]} g6 {[%emt 0:00:27]} 3. g3 {[%emt 0:01:20]} Bg7 {[%emt 0:02:00]} 4. Bg2 {[%emt 0:00:14]} O-O {[%emt 0:00:36]} 5. Nc3 {[%emt 0:00:11]} d6 {[%emt 0:00:33]} 6. Nf3 {[%emt 0:00:12]} c5 {[%emt 0:04:26]} 7. dxc5 {[%emt 0:05:29]} dxc5 {[%emt 0:09:28]} 8. Qd5 {[%emt 1:26:24]} Qd7 9. Qxd7 {[%emt 0:00:00]} Re8 {[%emt 1:16:48]} 10. Qd8 Rxd8 {[%emt 0:00:00]} 11. Bf4 {[%emt 0:00:00]} Nc6 {[%emt 0:00:00]} 12. Ne5 {[%emt 0:00:00]} Na5 {[%emt 0:00:00]} 13. Rc1 {[%emt 0:00:00]} Be6 {[%emt 0:00:00]} 14. Na4 {[%emt 0:00:00]} Rac8 {[%emt 0:00:00]} 15. Bd2 {[%emt 0:00:00]} Nxc4 {[%emt 0:00:00]} 16. Nxc4 {[%emt 0:00:00]} Bxc4 {[%emt 0:00:00]} 17. Bxb7 {[%emt 0:00:00]} Bd5 {[%emt 0:00:00]} 18. Bxc8 {[%emt 0:00:00]} Bxh1 {[%emt 0:00:00]} 19. Ba6 {[%emt 0:00:00]} Bd5 {[%emt 0:00:00]} 20. b3 {[%emt 0:00:00]} Ne4 {[%emt 0:00:00]} 21. Ba5 {[%emt 0:00:00]} Rd6 {[%emt 0:00:00]} 22. Bd3 {[%emt 0:00:00]} Bd4 {[%emt 0:00:00]} 23. e3 {[%emt 0:00:00]} Bf6 {[%emt 0:00:00]} 24. Ke2 {[%emt 0:00:00]} Ng5 {[%emt 0:00:00]} 25. Nxc5 {[%emt 0:00:00]} Bf3+ {[%emt 0:00:00]} 26. Kf1 {[%emt 0:00:00]} Bb2 {[%emt 0:00:00]} 27. Rc4 {[%emt 0:00:00]} Bd5 {[%emt 0:01:27]} 28. Rc2 {[%emt 0:00:00]} Ba3 {[%emt 0:00:19]} 29. b4 {[%emt 0:00:00]} Nf3 {[%emt 0:00:31]} 30. Ke2 {[%emt 0:00:00]} Ne5 {[%emt 0:02:16]} 31. e4 {[%emt 0:06:43]} Nxd3 {[%emt 0:01:56]} 32. Nxd3 {[%emt 0:00:10]} Bxe4 {[%emt 0:00:37]} 33. Rc3 {[%emt 0:00:06]} Bxd3+ {[%emt 0:02:26]} 34. Rxd3 {[%emt 0:00:03]} Re6+ {[%emt 0:00:50]} 35. Re3 {[%emt 0:01:12]} Rxe3+ {[%emt 0:00:25]} 36. Kxe3 {[%emt 0:00:26]} Kf8 {[%emt 0:00:23]} 37. Kd4 {[%emt 0:00:25]} Ke8 {[%emt 0:00:10]} 38. Kc4 {[%emt 0:01:16]} Kd7 {[%emt 0:01:36]} 39. b5 {[%emt 0:00:04]} Bd6 {[%emt 0:00:14]} 40. Bb4 {[%emt 0:00:23]} Bb8 {[%emt 0:00:19]} 41. Bc5 {[%emt 0:00:15]} f5 {[%emt 0:00:25]} 42. a4 {[%emt 0:01:34]} e6 {[%emt 0:01:41]} 43. a5 {[%emt 0:00:12]} Kc7 {[%emt 0:00:32]} 44. a6 {[%emt 0:00:19]} Kc8 {[%emt 0:00:25]} 45. f4 {[%emt 0:01:25]} Kc7 {[%emt 0:00:46]} 46. Bd4 {[%emt 0:00:35]} Kc8 {[%emt 0:00:31]} 47. Kc5 {[%emt 0:01:30]} Kc7 {[%emt 0:00:37]} 48. h4 {[%emt 0:00:41]} Kd7 {[%emt 0:00:30]} 49. b6 {[%emt 0:00:24]} h5 {[%emt 0:00:23]} 50. Kb5 {[%emt 0:00:17]} axb6 {[%emt 0:00:20]} 51. Kxb6 {[%emt 0:00:21]} 1-0

[Event "Irish New Year-GM 2022"]
[Site "Dublin"]
[Date "2022.01.02"]
[Round "1.3"]
[White "Kanyamarala, Tarun"]
[Black "Fitzsimons, David"]
[Result "1/2-1/2"]
[ECO "D23"]
[WhiteElo "2377"]
[BlackElo "2337"]
[Annotator "ChessBase"]
[PlyCount "56"]
[EventDate "2022.01.02"]
[EventType "tourn"]
[EventCountry "IRL"]
[SourceTitle "playchess.com"]
[Source "ChessBase"]
[SourceQuality "1"]
[TimeControl "5400+30"]

1. d4 {[%emt 0:00:03]} d5 {[%emt 0:00:13]} 2. c4 {[%emt 0:00:08]} c6 {[%emt 0:00:07]} 3. Nf3 {[%emt 0:01:14]} Nf6 {[%emt 0:00:07]} 4. Qb3 {[%emt 0:00:15]} dxc4 {[%emt 0:00:34]} 5. Qxc4 {[%emt 0:00:09]} Bg4 {[%emt 0:00:10]} 6. Nbd2 {[%emt 0:00:22]} Nbd7 {[%emt 0:00:16]} 7. g3 {[%emt 0:00:17]} e6 {[%emt 0:00:21]} 8. Bg2 {[%emt 0:00:10]} Be7 {[%emt 0:00:06]} 9. O-O {[%emt 0:00:32]} O-O {[%emt 0:00:06]} 10. Qb3 {[%emt 0:00:24]} Qb6 {[%emt 0:00:24]} 11. Nc4 {[%emt 0:00:44]} Qa6 {[%emt 0:00:11]} 12. Bd2 {[%emt 0:08:03]} Ne4 {[%emt 0:07:22]} 13. Rfd1 {[%emt 0:03:19]} Nxd2 {[%emt 0:05:38]} 14. Rxd2 {[%emt 0:00:18]} Rfd8 {[%emt 0:02:22]} 15. Nfe5 {[%emt 0:29:54]} Nxe5 {[%emt 0:07:16]} 16. Nxe5 {[%emt 0:00:12]} Bh5 {[%emt 0:04:49]} 17. e3 {[%emt 0:10:10]} Qb6 {[%emt 0:04:14]} 18. Qc2 {[%emt 0:02:09]} Qc7 {[%emt 0:12:13]} 19. Be4 {[%emt 0:06:12]} Bg6 {[%emt 0:04:08]} 20. Nxg6 {[%emt 0:01:16]} hxg6 {[%emt 0:00:06]} 21. h4 {[%emt 0:00:31]} Rd7 {[%emt 0:11:07]} 22. Kg2 {[%emt 0:06:41]} Rad8 {[%emt 0:02:27]} 23. Rdd1 {[%emt 0:13:13]} e5 {[%emt 0:02:06]} 24. Qb3 {[%emt 0:08:38]} Kf8 {[%emt 0:05:31]} 25. dxe5 {[%emt 0:00:42]} Rxd1 {[%emt 0:00:29]} 26. Rxd1 {[%emt 0:00:05]} Rxd1 {[%emt 0:00:11]} 27. Qxd1 {[%emt 0:00:06]} Qxe5 {[%emt 0:00:06]} 28. Qc2 {[%emt 0:00:19]} Qc5 {[%emt 0:00:29]} 1/2-1/2

[Event "Irish New Year-GM 2022"]
[Site "Dublin"]
[Date "2022.01.02"]
[Round "1.4"]
[White "Motwani, Paul"]
[Black "Cafolla, Peter"]
[Result "1-0"]
[ECO "D00"]
[WhiteElo "2432"]
[BlackElo "1976"]
[Annotator "ChessBase"]
[PlyCount "47"]
[EventDate "2022.01.02"]
[EventType "tourn"]
[EventCountry "IRL"]
[SourceTitle "playchess.com"]
[Source "ChessBase"]
[SourceQuality "1"]
[TimeControl "5400+30"]

1. d4 {[%emt 0:00:09]} d5 {[%emt 0:00:05]} 2. Bf4 {[%emt 0:00:30]} c5 {[%emt 0:00:24]} 3. e3 {[%emt 0:00:40]} Qb6 {[%emt 0:01:56]} 4. Nc3 {[%emt 0:02:21]} cxd4 {[%emt 0:01:40]} 5. Bb5+ {[%emt 1:29:20]} Kd8 {[%emt 0:02:36]} 6. exd4 {[%emt 0:00:00]} e6 {[%emt 0:03:08]} 7. Nf3 {[%emt 0:01:00]} Nd7 {[%emt 0:12:12]} 8. a4 {[%emt 0:00:00]} Bb4 {[%emt 0:00:44]} 9. O-O {[%emt 0:00:00]} Ngf6 {[%emt 0:03:18]} 10. Qd3 {[%emt 0:00:00]} a6 {[%emt 0:06:09]} 11. a5 {[%emt 0:00:00]} Bxa5 {[%emt 0:02:51]} 12. b4 {[%emt 0:00:00]} Bxb4 {[%emt 0:05:20]} 13. Rfb1 {[%emt 0:00:00]} axb5 {[%emt 0:19:45]} 14. Rxa8 {[%emt 0:00:00]} Bxc3 {[%emt 0:00:15]} 15. Qxc3 {[%emt 0:00:00]} Qc6 {[%emt 0:00:05]} 16. Qa5+ {[%emt 0:00:00]} Ke7 {[%emt 0:01:05]} 17. Qa3+ {[%emt 0:00:00]} Kd8 {[%emt 0:02:22]} 18. Ng5 {[%emt 0:00:00]} Ke8 {[%emt 0:03:28]} 19. Rxb5 {[%emt 0:00:00]} Nh5 {[%emt 0:03:13]} 20. Rba5 {[%emt 0:00:00]} Nb6 {[%emt 0:12:54]} 21. Rc5 {[%emt 0:00:00]} Qd7 {[%emt 0:01:51]} 22. Rcxc8+ {[%emt 0:00:00]} Nxc8 {[%emt 0:00:19]} 23. Qc5 {[%emt 0:00:00]} Kd8 {[%emt 0:02:40]} 24. Nxf7+ {[%emt 0:00:00]} 1-0

[Event "Irish New Year-GM 2022"]
[Site "Dublin"]
[Date "2022.01.02"]
[Round "1.5"]
[White "Murphy, Conor E"]
[Black "Gonzalez Garcia, Jose"]
[Result "1/2-1/2"]
[ECO "C08"]
[WhiteElo "2431"]
[BlackElo "2483"]
[Annotator "ChessBase"]
[PlyCount "93"]
[EventDate "2022.01.02"]
[EventType "tourn"]
[EventCountry "IRL"]
[SourceTitle "playchess.com"]
[Source "ChessBase"]
[SourceQuality "1"]
[TimeControl "5400+30"]

1. e4 {[%emt 0:00:04]} e6 {[%emt 0:00:26]} 2. d4 {[%emt 0:00:07]} d5 {[%emt 0:00:04]} 3. Nd2 {[%emt 0:00:25]} c5 {[%emt 0:00:34]} 4. Ngf3 {[%emt 0:00:21]} Nf6 {[%emt 0:00:36]} 5. exd5 {[%emt 0:01:00]} exd5 {[%emt 0:00:33]} 6. Bb5+ {[%emt 0:00:40]} Bd7 {[%emt 0:00:06]} 7. Bxd7+ {[%emt 0:00:06]} Nbxd7 {[%emt 0:00:05]} 8. O-O {[%emt 0:00:59]} Be7 {[%emt 0:00:04]} 9. dxc5 {[%emt 0:02:36]} Nxc5 {[%emt 0:00:24]} 10. Re1 {[%emt 0:00:31]} O-O {[%emt 0:00:08]} 11. Nf1 {[%emt 0:01:27]} Re8 {[%emt 0:05:08]} 12. Be3 {[%emt 0:04:42]} a6 {[%emt 0:11:15]} 13. c3 {[%emt 0:18:35]} Qc7 {[%emt 0:06:08]} 14. Bd4 {[%emt 0:03:07]} Nce4 {[%emt 0:06:47]} 15. Ne3 {[%emt 0:05:51]} Rad8 {[%emt 0:04:23]} 16. Qc2 {[%emt 0:05:21]} g6 {[%emt 0:05:24]} 17. Re2 {[%emt 0:09:28]} Bc5 {[%emt 0:08:11]} 18. Bxc5 {[%emt 0:12:00]} Qxc5 {[%emt 0:00:23]} 19. Nd4 {[%emt 0:00:20]} Re7 {[%emt 0:03:29]} 20. f3 {[%emt 0:08:47]} Nd6 {[%emt 0:09:13]} 21. Ng4 {[%emt 0:07:02]} Nde8 {[%emt 0:00:22]} 22. Nf2 {[%emt 0:02:30]} Nc7 {[%emt 0:12:32]} 23. Nd3 {[%emt 0:00:41]} Qd6 {[%emt 0:03:39]} 24. Rxe7 {[%emt 0:00:13]} Qxe7 {[%emt 0:00:05]} 25. Re1 {[%emt 0:00:20]} Qd6 {[%emt 0:01:16]} 26. Qb3 {[%emt 0:01:33]} b6 {[%emt 0:00:56]} 27. Qb4 {[%emt 0:01:59]} a5 {[%emt 0:03:03]} 28. Qxd6 {[%emt 0:03:04]} Rxd6 {[%emt 0:00:04]} 29. Nf4 {[%emt 0:00:08]} Kf8 {[%emt 0:00:51]} 30. g4 {[%emt 0:01:18]} Nd7 {[%emt 0:02:09]} 31. Kf2 {[%emt 0:01:16]} Nc5 {[%emt 0:01:48]} 32. Rd1 {[%emt 0:00:29]} N7e6 {[%emt 0:06:05]} 33. Nb5 {[%emt 0:02:44]} Rd7 {[%emt 0:00:05]} 34. Ne2 {[%emt 0:02:35]} Ke7 {[%emt 0:02:26]} 35. h4 {[%emt 0:01:15]} f6 {[%emt 0:00:58]} 36. Kg3 {[%emt 0:00:27]} Kf7 {[%emt 0:00:40]} 37. Rd2 {[%emt 0:01:22]} Rd8 {[%emt 0:01:23]} 38. Ned4 {[%emt 0:00:08]} Rd7 {[%emt 0:02:56]} 39. Nc2 {[%emt 0:00:32]} f5 {[%emt 0:01:26]} 40. gxf5 {[%emt 0:00:47]} gxf5 {[%emt 0:00:04]} 41. Ncd4 {[%emt 0:00:17]} Kf6 {[%emt 0:00:19]} 42. Nxe6 {[%emt 0:01:04]} Nxe6 {[%emt 0:00:12]} 43. Kf2 {[%emt 0:00:31]} Ke5 {[%emt 0:02:04]} 44. Re2+ {[%emt 0:01:39]} Kf6 {[%emt 0:00:05]} 45. Rd2 {[%emt 0:00:06]} Ke5 {[%emt 0:01:09]} 46. Re2+ {[%emt 0:03:03]} Kf6 {[%emt 0:03:32]} 47. Rd2 {[%emt 0:00:30]} 1/2-1/2

[Event "Irish New Year-GM 2022"]
[Site "Dublin"]
[Date "2022.01.03"]
[Round "2.2"]
[White "Cafolla, Peter"]
[Black "Murphy, Conor E"]
[Result "1-0"]
[ECO "D31"]
[WhiteElo "1976"]
[BlackElo "2431"]
[Annotator "ChessBase"]
[PlyCount "165"]
[EventDate "2022.01.02"]
[EventType "tourn"]
[EventCountry "IRL"]
[SourceTitle "playchess.com"]
[Source "ChessBase"]
[SourceQuality "1"]
[TimeControl "5400+30"]

1. d4 {[%emt 0:00:02]} d5 {[%emt 0:00:37]} 2. c4 {[%emt 0:00:05]} e6 {[%emt 0:00:04]} 3. Nc3 {[%emt 0:00:08]} a6 {[%emt 0:00:59]} 4. cxd5 {[%emt 0:03:58]} exd5 {[%emt 0:00:09]} 5. Qc2 {[%emt 0:00:24]} Be6 {[%emt 0:04:27]} 6. Bf4 {[%emt 0:02:13]} Bd6 {[%emt 0:03:55]} 7. Bxd6 {[%emt 0:01:03]} Qxd6 {[%emt 0:00:10]} 8. Nf3 {[%emt 0:01:51]} Nf6 {[%emt 0:01:15]} 9. e3 {[%emt 0:00:52]} O-O {[%emt 0:01:15]} 10. Bd3 {[%emt 0:03:54]} h6 {[%emt 0:08:12]} 11. h3 {[%emt 0:00:49]} Nbd7 {[%emt 0:00:59]} 12. O-O {[%emt 0:01:34]} c6 {[%emt 0:03:39]} 13. Rfc1 {[%emt 0:04:36]} Ne8 {[%emt 0:05:23]} 14. Na4 {[%emt 0:04:18]} Qe7 {[%emt 0:04:27]} 15. Nc5 {[%emt 0:01:33]} Nd6 {[%emt 0:03:41]} 16. a4 {[%emt 0:13:23]} Rfd8 {[%emt 0:06:43]} 17. Qe2 {[%emt 0:06:49]} Qf6 {[%emt 0:06:02]} 18. b4 {[%emt 0:04:49]} Bf5 {[%emt 0:03:48]} 19. Nxd7 {[%emt 0:03:57]} Rxd7 {[%emt 0:04:01]} 20. Ne5 {[%emt 0:00:48]} Bxd3 {[%emt 0:01:27]} 21. Qxd3 {[%emt 0:04:06]} Rdd8 {[%emt 0:01:35]} 22. Qe2 {[%emt 0:00:41]} Re8 {[%emt 0:03:57]} 23. a5 {[%emt 0:01:10]} Rad8 {[%emt 0:00:43]} 24. Qg4 {[%emt 0:01:44]} g6 {[%emt 0:02:56]} 25. Nd7 {[%emt 0:01:26]} Qe7 {[%emt 0:03:41]} 26. Nc5 {[%emt 0:01:32]} Kg7 {[%emt 0:01:50]} 27. Rab1 {[%emt 0:03:40]} h5 {[%emt 0:02:03]} 28. Qf3 {[%emt 0:02:28]} Rc8 {[%emt 0:01:34]} 29. Rc2 {[%emt 0:01:31]} Rh8 {[%emt 0:05:13]} 30. Re2 {[%emt 0:02:55]} Rce8 {[%emt 0:00:39]} 31. Rbe1 {[%emt 0:00:45]} f5 {[%emt 0:02:50]} 32. g3 {[%emt 0:03:18]} g5 {[%emt 0:05:07]} 33. Qg2 {[%emt 0:01:17]} Rh6 {[%emt 0:02:56]} 34. f3 {[%emt 0:01:21]} Nb5 {[%emt 0:02:50]} 35. Qf2 {[%emt 0:03:40]} Rf6 {[%emt 0:02:26]} 36. Kf1 {[%emt 0:03:28]} Rf7 {[%emt 0:00:55]} 37. Kg2 {[%emt 0:02:42]} Qf6 {[%emt 0:00:21]} 38. Rd2 {[%emt 0:00:46]} Nd6 {[%emt 0:00:31]} 39. Rde2 {[%emt 0:04:49]} Rfe7 {[%emt 0:00:06]} 40. Nd3 {[%emt 0:01:53]} Nc4 {[%emt 0:01:30]} 41. f4 {[%emt 0:00:34]} Nd6 {[%emt 0:02:14]} 42. fxg5 {[%emt 0:03:05]} Qxg5 {[%emt 0:00:02]} 43. Qf4 {[%emt 0:00:50]} Qxf4 {[%emt 0:00:41]} 44. gxf4 {[%emt 0:00:33]} Kf6 {[%emt 0:01:03]} 45. Kf3 {[%emt 0:01:24]} Rg8 {[%emt 0:00:46]} 46. Rg2 {[%emt 0:00:59]} Rxg2 {[%emt 0:00:05]} 47. Kxg2 {[%emt 0:00:04]} Rg7+ {[%emt 0:00:05]} 48. Kh2 {[%emt 0:01:07]} Nc4 {[%emt 0:00:42]} 49. Re2 {[%emt 0:00:41]} h4 {[%emt 0:00:47]} 50. Ne5 {[%emt 0:01:15]} Rg3 {[%emt 0:00:23]} 51. Nd7+ {[%emt 0:01:23]} Ke7 {[%emt 0:02:49]} 52. Nc5 {[%emt 0:00:06]} Rxe3 {[%emt 0:00:08]} 53. Rg2 {[%emt 0:01:53]} Nd6 {[%emt 0:00:48]} 54. Rg7+ {[%emt 0:00:09]} Ke8 {[%emt 0:01:08]} 55. Rh7 {[%emt 0:00:16]} Ne4 {[%emt 0:00:42]} 56. Rxh4 {[%emt 0:00:56]} Re2+ {[%emt 0:00:24]} 57. Kg1 {[%emt 0:00:20]} Nxc5 {[%emt 0:00:43]} 58. bxc5 {[%emt 0:00:10]} Re4 {[%emt 0:00:26]} 59. Rh7 {[%emt 0:00:19]} Rxf4 {[%emt 0:00:14]} 60. Rxb7 {[%emt 0:00:06]} Rxd4 {[%emt 0:00:32]} 61. Rc7 {[%emt 0:00:48]} Ra4 {[%emt 0:00:12]} 62. Rxc6 {[%emt 0:00:17]} Rxa5 {[%emt 0:00:02]} 63. h4 {[%emt 0:00:15]} Ra4 {[%emt 0:01:27]} 64. h5 {[%emt 0:00:08]} Rh4 {[%emt 0:00:09]} 65. h6 {[%emt 0:00:19]} d4 {[%emt 0:00:27]} 66. Rxa6 {[%emt 0:00:18]} d3 {[%emt 0:00:20]} 67. Kf2 {[%emt 0:00:30]} Kf7 {[%emt 0:01:05]} 68. Rd6 {[%emt 0:01:08]} Kg8 {[%emt 0:00:34]} 69. Ke3 {[%emt 0:00:21]} Rc4 {[%emt 0:00:33]} 70. c6 {[%emt 0:00:15]} Rc1 {[%emt 0:00:07]} 71. Kd2 {[%emt 0:00:22]} Rc5 {[%emt 0:00:05]} 72. Kxd3 {[%emt 0:00:07]} Rc1 {[%emt 0:00:13]} 73. Rf6 {[%emt 0:00:23]} Kh7 {[%emt 0:00:34]} 74. Kd4 {[%emt 0:00:23]} f4 {[%emt 0:00:26]} 75. Kd5 {[%emt 0:00:52]} Rd1+ {[%emt 0:00:23]} 76. Ke6 {[%emt 0:00:15]} Rc1 {[%emt 0:00:15]} 77. Kd7 {[%emt 0:00:14]} Rd1+ {[%emt 0:00:07]} 78. Kc8 {[%emt 0:00:09]} Rc1 {[%emt 0:00:41]} 79. c7 {[%emt 0:00:08]} Rc4 {[%emt 0:00:19]} 80. Kb7 {[%emt 0:00:26]} Rb4+ {[%emt 0:00:07]} 81. Kc6 {[%emt 0:00:06]} Rc4+ {[%emt 0:00:07]} 82. Kd7 {[%emt 0:00:45]} Rd4+ {[%emt 0:00:55]} 83. Rd6 {[%emt 0:00:14]} 1-0

[Event "Irish New Year-GM 2022"]
[Site "Dublin"]
[Date "2022.01.03"]
[Round "2.3"]
[White "Fitzsimons, David"]
[Black "Motwani, Paul"]
[Result "1/2-1/2"]
[ECO "C15"]
[WhiteElo "2337"]
[BlackElo "2432"]
[Annotator "ChessBase"]
[PlyCount "94"]
[EventDate "2022.01.02"]
[EventType "tourn"]
[EventCountry "IRL"]
[SourceTitle "playchess.com"]
[Source "ChessBase"]
[SourceQuality "1"]
[TimeControl "5400+30"]

1. e4 {[%emt 0:00:28]} e6 {[%emt 0:00:22]} 2. d4 {[%emt 0:00:13]} d5 {[%emt 0:00:09]} 3. Nc3 {[%emt 0:00:17]} Bb4 {[%emt 0:00:55]} 4. Nge2 {[%emt 0:00:29]} Nc6 {[%emt 0:03:05]} 5. a3 {[%emt 0:00:13]} Ba5 {[%emt 0:02:08]} 6. b4 {[%emt 0:00:36]} Bb6 {[%emt 0:00:10]} 7. Bb2 {[%emt 0:00:12]} Nh6 {[%emt 0:08:40]} 8. Qd2 {[%emt 0:08:24]} O-O {[%emt 0:03:50]} 9. Na4 {[%emt 0:18:29]} Qh4 {[%emt 0:17:41]} 10. Nxb6 {[%emt 0:15:40]} axb6 {[%emt 0:01:55]} 11. exd5 {[%emt 0:00:56]} exd5 {[%emt 0:00:43]} 12. Qf4 {[%emt 0:00:19]} Qxf4 {[%emt 0:10:35]} 13. Nxf4 {[%emt 0:01:20]} Rd8 {[%emt 0:02:49]} 14. h3 {[%emt 0:08:23]} Bf5 {[%emt 0:09:08]} 15. O-O-O {[%emt 0:01:15]} g5 {[%emt 0:03:29]} 16. Ne2 {[%emt 0:04:25]} Bg6 {[%emt 0:02:27]} 17. g4 {[%emt 0:09:17]} f5 {[%emt 0:03:27]} 18. f3 {[%emt 0:03:54]} Nf7 {[%emt 0:01:16]} 19. Nc3 {[%emt 0:00:48]} f4 {[%emt 0:04:48]} 20. h4 {[%emt 0:01:20]} h6 {[%emt 0:03:06]} 21. Nb5 {[%emt 0:00:43]} Ne7 {[%emt 0:04:20]} 22. Re1 {[%emt 0:02:19]} Rd7 {[%emt 0:01:14]} 23. c4 {[%emt 0:01:12]} Nd6 {[%emt 0:06:29]} 24. cxd5 {[%emt 0:03:39]} Nxd5 {[%emt 0:01:20]} 25. hxg5 {[%emt 0:02:55]} hxg5 {[%emt 0:00:30]} 26. Re5 {[%emt 0:00:36]} Nf7 {[%emt 0:01:06]} 27. Re6 {[%emt 0:01:14]} Kg7 {[%emt 0:00:48]} 28. Nc3 {[%emt 0:03:04]} c6 {[%emt 0:01:00]} 29. Bc4 {[%emt 0:02:48]} Nd6 {[%emt 0:02:39]} 30. Nxd5 {[%emt 0:03:21]} cxd5 {[%emt 0:01:22]} 31. Bxd5 {[%emt 0:00:50]} Rc8+ {[%emt 0:02:22]} 32. Kd1 {[%emt 0:00:08]} Nb5 {[%emt 0:01:28]} 33. Rxg6+ {[%emt 0:00:47]} Kxg6 {[%emt 0:00:07]} 34. Be4+ {[%emt 0:00:03]} Kf6 {[%emt 0:00:23]} 35. d5+ {[%emt 0:00:31]} Ke7 {[%emt 0:00:56]} 36. Rh7+ {[%emt 0:00:22]} Kd6 {[%emt 0:00:17]} 37. Rxd7+ {[%emt 0:00:11]} Kxd7 {[%emt 0:00:06]} 38. Bf5+ {[%emt 0:00:08]} Kd8 {[%emt 0:00:59]} 39. Bf6+ {[%emt 0:00:32]} Kc7 {[%emt 0:00:05]} 40. a4 {[%emt 0:00:49]} Rf8 {[%emt 0:00:46]} 41. Be5+ {[%emt 0:01:12]} Nd6 {[%emt 0:00:04]} 42. Kd2 {[%emt 0:00:22]} Ra8 {[%emt 0:00:30]} 43. Bc2 {[%emt 0:01:36]} Re8 {[%emt 0:00:20]} 44. Bd4 {[%emt 0:00:38]} Nc4+ {[%emt 0:00:11]} 45. Kc3 {[%emt 0:00:26]} Ne5 {[%emt 0:00:51]} 46. Be4 {[%emt 0:00:43]} Nxg4 {[%emt 0:01:33]} 47. Bg6 {[%emt 0:00:34]} Re3+ {[%emt 0:00:34]} 1/2-1/2